[Event "14e Open International de Quenza"]
[Site "Quenza, France"]
[Date "2025.07.06"]
[Round "1.11"]
[White "Ratier-Fontana, Matteo"]
[Black "Di Pinto, Vincenzo"]
[Result "1-0"]
[TimeControl "5min+3s"]
[WhiteElo "2275"]
[BlackElo "1571"]

1. Nf3 {[%clk 00:05:03]} {[%emt 00:00:01]} Nf6 {[%clk 00:05:03]} 2. d4 {[%clk
00:05:03]} {[%emt 00:00:02]} d5 {[%clk 00:05:03]} 3. Bf4 {[%clk 00:05:03]} e6
{[%clk 00:05:03]} {[%emt 00:00:04]} 4. e3 {[%clk 00:05:03]} Bd6 {[%clk
00:05:03]} 5. Bg3 {[%clk 00:05:03]} c5 {[%clk 00:05:03]} {[%emt 00:00:03]} 6.
Nbd2 {[%clk 00:05:03]} {[%emt 00:00:01]} b6 {[%clk 00:05:03]} {[%emt 00:00:04]}
7. Bb5+ {[%clk 00:04:56]} {[%emt 00:00:10]} Ke7 {[%clk 00:05:03]} {[%emt
00:00:01]} 8. c3 {[%clk 00:04:56]} {[%emt 00:00:04]} a6 {[%clk 00:05:03]}
{[%emt 00:00:02]} 9. Bd3 {[%clk 00:04:56]} {[%emt 00:00:01]} Bb7 {[%clk
00:05:01]} {[%emt 00:00:06]} 10. Ne5 {[%clk 00:04:56]} {[%emt 00:00:02]} Nfd7
{[%clk 00:04:57]} {[%emt 00:00:06]} 11. Qg4 {[%clk 00:04:52]} {[%emt 00:00:08]}
Qf8 {[%clk 00:04:50]} {[%emt 00:00:09]} 12. Ndf3 {[%clk 00:04:34]} {[%emt
00:00:22]} f6 {[%clk 00:04:45]} {[%emt 00:00:08]} 13. Nxd7 {[%clk 00:04:10]}
{[%emt 00:00:27]} Nxd7 {[%clk 00:04:44]} {[%emt 00:00:04]} 14. Bxd6+ {[%clk
00:04:07]} {[%emt 00:00:07]} Kxd6 {[%clk 00:04:44]} 15. Qg3+ {[%clk 00:04:07]}
{[%emt 00:00:02]} Ke7 {[%clk 00:04:34]} {[%emt 00:00:12]} 16. O-O {[%clk
00:04:02]} {[%emt 00:00:08]} c4 {[%clk 00:04:31]} {[%emt 00:00:06]} 17. Bc2
{[%clk 00:04:02]} {[%emt 00:00:01]} Kf7 {[%clk 00:04:22]} {[%emt 00:00:12]} 18.
Rfe1 {[%clk 00:03:58]} {[%emt 00:00:07]} b5 {[%clk 00:04:17]} {[%emt 00:00:08]}
19. e4 {[%clk 00:03:53]} {[%emt 00:00:08]} Rc8 {[%clk 00:03:54]} {[%emt
00:00:26]} 20. e5 {[%clk 00:03:53]} {[%emt 00:00:02]} Ke8 {[%clk 00:03:44]}
{[%emt 00:00:12]} 21. exf6 {[%clk 00:03:52]} {[%emt 00:00:04]} Qxf6 {[%clk
00:03:43]} {[%emt 00:00:04]} 22. Qg4 {[%clk 00:03:32]} {[%emt 00:00:24]} Kf7
{[%clk 00:03:29]} {[%emt 00:00:17]} 23. Ng5+ {[%clk 00:03:32]} {[%emt
00:00:02]} Kg8 {[%clk 00:03:22]} {[%emt 00:00:09]} 24. Rxe6 {[%clk 00:03:31]}
{[%emt 00:00:04]} Qf8 {[%clk 00:03:15]} {[%emt 00:00:10]} 25. Rae1 {[%clk
00:03:21]} {[%emt 00:00:14]} Nf6 {[%clk 00:03:15]} {[%emt 00:00:02]} 26. Qf5
{[%clk 00:03:00]} {[%emt 00:00:24]} h6 {[%clk 00:03:03]} {[%emt 00:00:15]} 27.
Nf3 {[%clk 00:02:55]} {[%emt 00:00:08]} Re8 {[%clk 00:03:03]} {[%emt 00:00:03]}
28. Rxe8 {[%clk 00:02:47]} {[%emt 00:00:10]} Nxe8 {[%clk 00:03:03]} 29. Qe6+
{[%clk 00:02:47]} {[%emt 00:00:02]} 1-0

[Event "14e Open International de Quenza"]
[Site "Quenza, France"]
[Date "2025.07.06"]
[Round "1.12"]
[White "Moretti, Thomas"]
[Black "Mullon, Jean-Baptiste"]
[Result "0-1"]
[TimeControl "5min+3s"]
[WhiteElo "1658"]
[BlackElo "2277"]

1. e4 {[%clk 00:05:03]} c5 {[%clk 00:05:03]} {[%emt 00:00:02]} 2. Nf3 {[%clk
00:05:03]} {[%emt 00:00:01]} e6 {[%clk 00:05:03]} {[%emt 00:00:01]} 3. d4
{[%clk 00:04:57]} {[%emt 00:00:10]} cxd4 {[%clk 00:05:03]} {[%emt 00:00:02]} 4.
Nxd4 {[%clk 00:04:57]} {[%emt 00:00:03]} Nf6 {[%clk 00:05:03]} {[%emt
00:00:01]} 5. Nc3 {[%clk 00:04:57]} {[%emt 00:00:03]} Nc6 {[%clk 00:05:03]}
{[%emt 00:00:01]} 6. Nxc6 {[%clk 00:04:53]} {[%emt 00:00:06]} bxc6 {[%clk
00:05:03]} {[%emt 00:00:01]} 7. e5 {[%clk 00:04:52]} {[%emt 00:00:04]} Nd5
{[%clk 00:05:03]} {[%emt 00:00:01]} 8. Nxd5 {[%clk 00:04:45]} {[%emt 00:00:10]}
cxd5 {[%clk 00:05:03]} {[%emt 00:00:02]} 9. Bd3 {[%clk 00:04:39]} {[%emt
00:00:09]} Qc7 {[%clk 00:05:03]} {[%emt 00:00:02]} 10. Bf4 {[%clk 00:04:33]}
{[%emt 00:00:09]} Rb8 {[%clk 00:04:59]} {[%emt 00:00:08]} 11. b3 {[%clk
00:04:27]} {[%emt 00:00:09]} Qc3+ {[%clk 00:04:59]} {[%emt 00:00:03]} 12. Bd2
{[%clk 00:04:21]} {[%emt 00:00:09]} Qxe5+ {[%clk 00:04:59]} {[%emt 00:00:02]}
13. Be2 {[%clk 00:04:20]} {[%emt 00:00:03]} Bd6 {[%clk 00:04:48]} {[%emt
00:00:15]} 14. g3 {[%clk 00:04:14]} {[%emt 00:00:09]} Bb4 {[%clk 00:03:48]}
{[%emt 00:01:02]} 15. O-O {[%clk 00:04:09]} {[%emt 00:00:07]} Bxd2 {[%clk
00:03:46]} {[%emt 00:00:06]} 16. Qxd2 {[%clk 00:04:09]} {[%emt 00:00:03]} O-O
{[%clk 00:03:43]} {[%emt 00:00:06]} 17. Bd3 {[%clk 00:03:31]} {[%emt 00:00:41]}
f5 {[%clk 00:03:38]} {[%emt 00:00:09]} 18. f4 {[%clk 00:03:29]} {[%emt
00:00:05]} Qd4+ {[%clk 00:03:38]} {[%emt 00:00:03]} 19. Kh1 {[%clk 00:03:25]}
{[%emt 00:00:07]} Bb7 {[%clk 00:03:34]} {[%emt 00:00:07]} 20. Qf2 {[%clk
00:03:22]} {[%emt 00:00:06]} Qxf2 {[%clk 00:03:31]} {[%emt 00:00:06]} 21. Rxf2
{[%clk 00:03:22]} {[%emt 00:00:02]} Kf7 {[%clk 00:03:28]} {[%emt 00:00:06]} 22.
Kg1 {[%clk 00:03:17]} {[%emt 00:00:08]} Kf6 {[%clk 00:03:28]} {[%emt 00:00:03]}
23. Rd1 {[%clk 00:03:00]} {[%emt 00:00:20]} Rbc8 {[%clk 00:03:28]} {[%emt
00:00:02]} 24. c4 {[%clk 00:02:53]} {[%emt 00:00:10]} Rc7 {[%clk 00:03:27]}
{[%emt 00:00:04]} 25. h3 {[%clk 00:02:22]} {[%emt 00:00:33]} Rfc8 {[%clk
00:03:22]} {[%emt 00:00:07]} 26. g4 {[%clk 00:02:22]} {[%emt 00:00:03]} g6
{[%clk 00:03:21]} {[%emt 00:00:04]} 27. g5+ {[%clk 00:02:09]} {[%emt 00:00:16]}
Kf7 {[%clk 00:03:21]} {[%emt 00:00:01]} 28. h4 {[%clk 00:02:09]} {[%emt
00:00:03]} dxc4 {[%clk 00:03:10]} {[%emt 00:00:14]} 29. Bxc4 {[%clk 00:02:09]}
{[%emt 00:00:03]} d5 {[%clk 00:03:10]} 30. Bd3 {[%clk 00:01:36]} {[%emt
00:00:36]} Rc1 {[%clk 00:03:10]} {[%emt 00:00:03]} 31. Rxc1 {[%clk 00:01:28]}
{[%emt 00:00:11]} Rxc1+ {[%clk 00:03:10]} {[%emt 00:00:01]} 32. Kg2 {[%clk
00:01:28]} {[%emt 00:00:01]} d4+ {[%clk 00:03:07]} {[%emt 00:00:06]} 33. Kh2
{[%clk 00:01:27]} {[%emt 00:00:04]} Be4 {[%clk 00:03:07]} {[%emt 00:00:02]} 34.
Rd2 {[%clk 00:01:25]} {[%emt 00:00:05]} Re1 {[%clk 00:02:56]} {[%emt 00:00:14]}
35. b4 {[%clk 00:01:11]} {[%emt 00:00:17]} Ke7 {[%clk 00:02:56]} {[%emt
00:00:03]} 36. Kg3 {[%clk 00:01:03]} {[%emt 00:00:10]} Re3+ {[%clk 00:02:56]}
{[%emt 00:00:02]} 37. Kf2 {[%clk 00:01:03]} {[%emt 00:00:02]} Rxd3 {[%clk
00:02:56]} {[%emt 00:00:02]} 38. Rxd3 {[%clk 00:01:03]} {[%emt 00:00:02]} Bxd3
{[%clk 00:02:56]} {[%emt 00:00:01]} 39. Ke1 {[%clk 00:01:03]} {[%emt 00:00:02]}
Bc4 {[%clk 00:02:55]} {[%emt 00:00:03]} 40. a4 {[%clk 00:01:03]} {[%emt
00:00:03]} e5 {[%clk 00:02:55]} {[%emt 00:00:02]} 41. fxe5 {[%clk 00:01:03]}
{[%emt 00:00:02]} Ke6 {[%clk 00:02:55]} 42. Kd2 {[%clk 00:01:03]} {[%emt
00:00:02]} Kxe5 {[%clk 00:02:55]} 43. b5 {[%clk 00:01:02]} {[%emt 00:00:05]}
Kd5 {[%clk 00:02:54]} {[%emt 00:00:04]} 44. Kd1 {[%emt 00:00:13]} Ke5 45. Ke1
{[%emt 00:00:03]} 0-1

[Event "14e Open International de Quenza"]
[Site "Quenza, France"]
[Date "????.??.??"]
[Round "2.1"]
[White "Have, Didier"]
[Black "Dardha, Daniel"]
[Result "0-1"]
[TimeControl "5min+3s"]
[WhiteElo "1903"]
[BlackElo "2627"]

1. e4 {[%clk 00:05:03]} c5 {[%clk 00:05:03]} {[%emt 00:00:02]} 2. d4 {[%clk
00:05:03]} cxd4 {[%clk 00:05:03]} {[%emt 00:00:03]} 3. c3 {[%clk 00:05:03]}
{[%emt 00:00:02]} Nf6 {[%clk 00:05:03]} {[%emt 00:00:02]} 4. e5 {[%clk
00:05:03]} {[%emt 00:00:01]} Nd5 {[%clk 00:05:03]} 5. Qxd4 {[%clk 00:05:03]}
{[%emt 00:00:01]} e6 {[%clk 00:05:03]} {[%emt 00:00:02]} 6. Nf3 {[%clk
00:05:03]} {[%emt 00:00:02]} d6 {[%clk 00:05:03]} {[%emt 00:00:02]} 7. Bb5+
{[%clk 00:04:55]} {[%emt 00:00:12]} Nc6 {[%clk 00:04:55]} {[%emt 00:00:12]} 8.
exd6 {[%clk 00:04:52]} {[%emt 00:00:06]} Qxd6 {[%clk 00:04:44]} {[%emt
00:00:13]} 9. O-O {[%clk 00:04:22]} {[%emt 00:00:33]} Bd7 {[%clk 00:04:44]}
{[%emt 00:00:02]} 10. c4 {[%clk 00:04:19]} {[%emt 00:00:06]} Nxd4 {[%clk
00:04:44]} {[%emt 00:00:02]} 0-1

[Event "14e Open International de Quenza"]
[Site "Quenza, France"]
[Date "????.??.??"]
[Round "2.2"]
[White "Bellahcene, Bilel"]
[Black "Stubbe, Damien"]
[Result "1-0"]
[TimeControl "5min+3s"]
[WhiteElo "2513"]
[BlackElo "1962"]

1. e4 {[%clk 00:05:03]} e6 {[%clk 00:05:03]} {[%emt 00:00:02]} 2. d4 {[%clk
00:05:03]} d5 {[%clk 00:05:03]} {[%emt 00:00:01]} 3. e5 {[%clk 00:05:03]} c5
{[%clk 00:05:03]} {[%emt 00:00:01]} 4. c3 {[%clk 00:05:03]} Nc6 {[%clk
00:05:03]} 5. g3 {[%clk 00:05:03]} Qb6 {[%clk 00:04:56]} {[%emt 00:00:11]} 6.
Ne2 {[%clk 00:05:03]} {[%emt 00:00:01]} Nge7 {[%clk 00:04:56]} {[%emt
00:00:02]} 7. Bh3 {[%clk 00:05:03]} {[%emt 00:00:01]} Ng6 {[%clk 00:04:25]}
{[%emt 00:00:34]} 8. O-O {[%clk 00:05:01]} {[%emt 00:00:06]} Be7 {[%clk
00:04:25]} {[%emt 00:00:02]} 9. a4 {[%clk 00:04:40]} {[%emt 00:00:24]} h5
{[%clk 00:04:23]} {[%emt 00:00:05]} 10. Kh1 {[%clk 00:04:31]} {[%emt 00:00:12]}
Bd7 {[%clk 00:04:04]} {[%emt 00:00:22]} 11. f4 {[%clk 00:04:29]} {[%emt
00:00:04]} cxd4 {[%clk 00:03:35]} {[%emt 00:00:32]} 12. cxd4 {[%clk 00:04:29]}
{[%emt 00:00:02]} f5 {[%clk 00:03:35]} {[%emt 00:00:01]} 13. Nbc3 {[%clk
00:04:10]} {[%emt 00:00:21]} O-O {[%clk 00:02:36]} {[%emt 00:01:02]} 14. Be3
{[%clk 00:04:10]} {[%emt 00:00:03]} Na5 {[%clk 00:02:33]} {[%emt 00:00:05]} 15.
Rb1 {[%clk 00:04:08]} {[%emt 00:00:07]} Nc4 {[%clk 00:02:33]} {[%emt 00:00:02]}
16. Bc1 {[%clk 00:04:00]} {[%emt 00:00:10]} h4 {[%clk 00:02:23]} {[%emt
00:00:13]} 17. g4 {[%clk 00:03:57]} {[%emt 00:00:07]} fxg4 {[%clk 00:02:23]}
{[%emt 00:00:02]} 18. Bxg4 {[%clk 00:03:57]} {[%emt 00:00:01]} Bb4 {[%clk
00:02:18]} {[%emt 00:00:09]} 19. Nxd5 {[%clk 00:03:42]} {[%emt 00:00:17]} exd5
{[%clk 00:02:17]} {[%emt 00:00:04]} 20. Bxd7 {[%clk 00:03:39]} {[%emt
00:00:06]} Ne7 {[%clk 00:01:59]} {[%emt 00:00:21]} 21. f5 {[%clk 00:03:39]}
{[%emt 00:00:04]} Qc7 {[%clk 00:00:57]} {[%emt 00:01:05]} 22. Be6+ {[%clk
00:03:39]} {[%emt 00:00:01]} Kh8 {[%clk 00:00:57]} {[%emt 00:00:02]} 23. Nf4
{[%clk 00:03:39]} {[%emt 00:00:03]} Nxe5 {[%clk 00:00:55]} {[%emt 00:00:05]} 24.
Qh5# {[%clk 00:03:39]} {[%emt 00:00:02]} 1-0

[Event "14e Open International de Quenza"]
[Site "Quenza, France"]
[Date "????.??.??"]
[Round "2.3"]
[White "Cardi, Jean"]
[Black "Lagarde, Maxime"]
[Result "0-1"]
[TimeControl "5min+3s"]
[WhiteElo "1976"]
[BlackElo "2618"]

1. e4 {[%clk 00:05:03]} {[%emt 00:00:01]} c5 {[%clk 00:05:03]} {[%emt
00:00:01]} 2. Nf3 {[%clk 00:05:03]} {[%emt 00:00:01]} e6 {[%clk 00:05:03]}
{[%emt 00:00:01]} 3. c3 {[%emt 00:00:06]} d5 {[%clk 00:05:03]} {[%emt
00:00:03]} 4. exd5 {[%clk 00:05:00]} {[%emt 00:00:03]} exd5 {[%clk 00:05:03]}
{[%emt 00:00:02]} 5. d4 {[%clk 00:05:00]} {[%emt 00:00:02]} Nf6 {[%clk
00:05:03]} {[%emt 00:00:01]} 6. Bb5+ {[%clk 00:04:59]} {[%emt 00:00:04]} Bd7
{[%clk 00:05:03]} {[%emt 00:00:02]} 7. Bxd7+ {[%clk 00:04:38]} {[%emt
00:00:23]} Nbxd7 {[%clk 00:05:03]} {[%emt 00:00:01]} 8. O-O {[%clk 00:04:38]}
{[%emt 00:00:03]} Be7 {[%clk 00:05:03]} {[%emt 00:00:02]} 9. Nbd2 {[%clk
00:04:24]} {[%emt 00:00:17]} O-O {[%clk 00:04:47]} {[%emt 00:00:21]} 10. Re1
{[%clk 00:04:09]} {[%emt 00:00:17]} Re8 {[%clk 00:04:32]} {[%emt 00:00:18]} 11.
dxc5 {[%clk 00:03:45]} {[%emt 00:00:27]} Nxc5 {[%clk 00:04:32]} {[%emt
00:00:01]} 12. Nb3 {[%clk 00:03:45]} {[%emt 00:00:01]} Nce4 {[%clk 00:04:30]}
{[%emt 00:00:05]} 13. Nbd4 {[%clk 00:03:21]} {[%emt 00:00:27]} a6 {[%clk
00:04:24]} {[%emt 00:00:10]} 14. Nf5 {[%clk 00:02:48]} {[%emt 00:00:35]} Bf8
{[%clk 00:04:21]} {[%emt 00:00:07]} 15. N3d4 {[%clk 00:02:34]} {[%emt
00:00:16]} Qb6 {[%clk 00:03:33]} {[%emt 00:00:51]} 16. Qb3 {[%clk 00:01:52]}
{[%emt 00:00:46]} Qxb3 {[%clk 00:03:27]} {[%emt 00:00:09]} 17. Nxb3 {[%clk
00:01:29]} {[%emt 00:00:26]} Nxc3 {[%clk 00:03:16]} {[%emt 00:00:15]} 18. Rxe8
{[%clk 00:01:07]} {[%emt 00:00:24]} Rxe8 {[%clk 00:03:16]} {[%emt 00:00:02]} 19.
Be3 {[%clk 00:00:55]} {[%emt 00:00:14]} Nb5 {[%clk 00:02:44]} {[%emt 00:00:36]}
20. Rd1 {[%clk 00:00:44]} {[%emt 00:00:15]} g6 {[%clk 00:02:39]} {[%emt
00:00:08]} 21. Nfd4 {[%clk 00:00:42]} {[%emt 00:00:04]} Nd6 {[%clk 00:02:35]}
{[%emt 00:00:08]} 22. h3 {[%emt 00:00:09]} Nc4 {[%clk 00:02:35]} {[%emt
00:00:02]} 23. Bc1 {[%clk 00:00:35]} {[%emt 00:00:05]} b6 {[%clk 00:02:24]}
{[%emt 00:00:13]} 24. Nd2 {[%clk 00:00:22]} {[%emt 00:00:23]} Ne4 {[%clk
00:02:12]} 25. Nxe4 {[%clk 00:00:22]} dxe4 {[%clk 00:02:12]} 26. b3 {[%emt
00:00:23]} Ne5 {[%clk 00:02:10]} {[%emt 00:00:03]} 27. Be3 {[%clk 00:00:18]}
{[%emt 00:00:03]} Rc8 {[%clk 00:02:04]} {[%emt 00:00:09]} 28. Ne2 {[%clk
00:00:10]} {[%emt 00:00:11]} b5 {[%clk 00:02:04]} 29. Nf4 {[%clk 00:00:10]}
{[%emt 00:00:03]} f5 {[%clk 00:01:51]} {[%emt 00:00:16]} 30. Ne6 {[%clk
00:00:10]} {[%emt 00:00:03]} Nd3 {[%clk 00:01:38]} {[%emt 00:00:16]} 31. f3
{[%clk 00:00:06]} {[%emt 00:00:07]} Be7 {[%clk 00:01:28]} {[%emt 00:00:13]} 32.
fxe4 {[%clk 00:00:06]} {[%emt 00:00:03]} fxe4 {[%clk 00:01:28]} 33. Bg5 {[%clk
00:00:05]} {[%emt 00:00:04]} Kf7 {[%clk 00:01:26]} {[%emt 00:00:04]} 34. Bxe7
{[%clk 00:00:05]} {[%emt 00:00:02]} Kxe6 {[%clk 00:01:26]} {[%emt 00:00:02]} 35.
Bg5 {[%emt 00:00:03]} Rc2 {[%clk 00:01:21]} {[%emt 00:00:07]} 36. a4 {[%clk
00:00:05]} {[%emt 00:00:02]} b4 {[%clk 00:01:21]} {[%emt 00:00:03]} 37. Rf1
{[%clk 00:00:05]} {[%emt 00:00:03]} Rb2 {[%clk 00:01:13]} {[%emt 00:00:11]} 38.
Rf6+ {[%clk 00:00:05]} {[%emt 00:00:01]} Kd5 {[%clk 00:01:13]} {[%emt
00:00:01]} 39. Rxa6 {[%clk 00:00:05]} {[%emt 00:00:01]} Rxb3 {[%clk 00:01:13]}
{[%emt 00:00:01]} 0-1

[Event "14e Open International de Quenza"]
[Site "Quenza, France"]
[Date "????.??.??"]
[Round "2.4"]
[White "Fressinet, Laurent"]
[Black "Paoli, Guillaume"]
[Result "1-0"]
[TimeControl "5min+3s"]
[WhiteElo "2605"]
[BlackElo "1828"]

1. d4 {[%clk 00:04:58]} {[%emt 00:00:05]} g6 {[%clk 00:05:03]} {[%emt
00:00:02]} 2. e4 {[%clk 00:04:58]} {[%emt 00:00:01]} c6 {[%clk 00:05:03]} 3.
Nf3 {[%clk 00:04:57]} {[%emt 00:00:04]} d5 {[%emt 00:00:01]} 4. e5 {[%clk
00:04:57]} {[%emt 00:00:01]} Bg7 {[%clk 00:05:03]} {[%emt 00:00:01]} 5. h3
{[%clk 00:04:51]} {[%emt 00:00:09]} h5 {[%clk 00:05:02]} {[%emt 00:00:05]} 6.
c4 {[%clk 00:04:50]} {[%emt 00:00:04]} Bf5 {[%clk 00:04:37]} {[%emt 00:00:28]}
7. Nc3 {[%clk 00:04:46]} {[%emt 00:00:07]} e6 {[%clk 00:04:32]} {[%emt
00:00:08]} 8. cxd5 {[%clk 00:04:15]} {[%emt 00:00:34]} exd5 {[%clk 00:03:28]}
{[%emt 00:01:07]} 9. Bd3 {[%clk 00:04:15]} Bxd3 {[%clk 00:03:15]} {[%emt
00:00:17]} 10. Qxd3 {[%clk 00:04:15]} {[%emt 00:00:01]} Nh6 {[%clk 00:03:15]}
{[%emt 00:00:01]} 11. O-O {[%clk 00:04:08]} {[%emt 00:00:10]} Nf5 {[%clk
00:03:15]} {[%emt 00:00:01]} 12. Bg5 {[%clk 00:03:55]} {[%emt 00:00:15]} Qc7
{[%clk 00:03:03]} {[%emt 00:00:15]} 13. Rac1 {[%clk 00:03:51]} {[%emt
00:00:07]} Qb6 {[%clk 00:03:03]} {[%emt 00:00:01]} 14. Rfe1 {[%clk 00:03:40]}
{[%emt 00:00:13]} O-O {[%clk 00:03:00]} {[%emt 00:00:07]} 15. Qd2 {[%clk
00:03:39]} {[%emt 00:00:04]} Re8 {[%clk 00:02:54]} {[%emt 00:00:09]} 16. g4
{[%clk 00:03:32]} {[%emt 00:00:10]} hxg4 {[%clk 00:02:52]} {[%emt 00:00:06]} 17.
hxg4 {[%clk 00:03:32]} {[%emt 00:00:02]} Ne7 {[%clk 00:02:49]} {[%emt
00:00:05]} 18. Bxe7 {[%clk 00:02:57]} {[%emt 00:00:38]} Rxe7 {[%clk 00:02:48]}
{[%emt 00:00:05]} 19. Nxd5 {[%clk 00:02:57]} {[%emt 00:00:01]} cxd5 {[%clk
00:02:24]} {[%emt 00:00:27]} 20. Rc8+ {[%clk 00:02:57]} {[%emt 00:00:02]} Kh7
{[%clk 00:02:07]} {[%emt 00:00:21]} 21. Ng5+ {[%clk 00:02:45]} {[%emt
00:00:14]} Kh6 {[%clk 00:02:07]} {[%emt 00:00:02]} 22. Kg2 {[%clk 00:02:40]}
{[%emt 00:00:08]} Bxe5 {[%clk 00:01:51]} {[%emt 00:00:19]} 23. Ne6+ {[%clk
00:02:03]} {[%emt 00:00:39]} 1-0

[Event "14e Open International de Quenza"]
[Site "Quenza, France"]
[Date "????.??.??"]
[Round "2.5"]
[White "Deladerriere, Helio"]
[Black "Hou, Yifan"]
[Result "0-1"]
[TimeControl "5min+3s"]
[WhiteElo "1867"]
[BlackElo "2633"]

1. d4 {[%clk 00:05:03]} {[%emt 00:19:00]} d5 {[%clk 00:05:03]} {[%emt
00:00:02]} 2. Nf3 {[%clk 00:05:03]} {[%emt 00:00:01]} Nf6 {[%clk 00:05:03]}
{[%emt 00:00:01]} 3. e3 {[%clk 00:05:03]} {[%emt 00:00:02]} e6 {[%clk
00:05:03]} {[%emt 00:00:03]} 4. Bd3 {[%clk 00:05:03]} {[%emt 00:00:03]} b6
{[%clk 00:05:00]} {[%emt 00:00:07]} 5. b3 {[%clk 00:05:03]} {[%emt 00:00:03]}
Bb7 {[%clk 00:05:00]} {[%emt 00:00:02]} 6. Bb2 {[%clk 00:05:03]} {[%emt
00:00:01]} Be7 {[%clk 00:04:45]} {[%emt 00:00:18]} 7. O-O {[%clk 00:05:03]}
{[%emt 00:00:03]} O-O {[%clk 00:04:45]} {[%emt 00:00:02]} 8. Nbd2 {[%clk
00:05:03]} {[%emt 00:00:03]} c5 {[%clk 00:04:45]} {[%emt 00:00:01]} 9. Ne5
{[%clk 00:04:51]} {[%emt 00:00:15]} Nc6 {[%clk 00:04:45]} {[%emt 00:00:02]} 10.
f4 {[%clk 00:04:30]} {[%emt 00:00:24]} Rc8 {[%clk 00:04:45]} {[%emt 00:00:01]}
11. Ndf3 {[%clk 00:04:27]} {[%emt 00:00:05]} cxd4 {[%clk 00:04:02]} {[%emt
00:00:46]} 12. exd4 {[%clk 00:04:09]} {[%emt 00:00:21]} Nb4 {[%clk 00:04:02]}
{[%emt 00:00:03]} 13. a3 {[%clk 00:03:29]} {[%emt 00:00:44]} Nxd3 {[%clk
00:04:02]} {[%emt 00:00:01]} 14. Qxd3 {[%clk 00:03:29]} Ne4 {[%clk 00:03:58]}
{[%emt 00:00:07]} 15. c4 {[%clk 00:02:50]} {[%emt 00:00:41]} Qc7 {[%clk
00:03:23]} {[%emt 00:00:38]} 16. Rac1 {[%clk 00:02:39]} {[%emt 00:00:14]} dxc4
{[%clk 00:03:23]} {[%emt 00:00:03]} 17. Rxc4 {[%clk 00:02:29]} {[%emt
00:00:13]} Qd6 {[%clk 00:03:23]} {[%emt 00:00:01]} 18. Rfc1 {[%clk 00:02:15]}
{[%emt 00:00:17]} Rxc4 {[%clk 00:02:56]} {[%emt 00:00:31]} 19. Nxc4 {[%clk
00:02:15]} {[%emt 00:00:02]} Qxf4 {[%clk 00:02:54]} {[%emt 00:00:05]} 20. Nce5
{[%clk 00:01:32]} {[%emt 00:00:46]} Bd6 {[%clk 00:02:37]} {[%emt 00:00:19]} 21.
Rf1 {[%clk 00:00:56]} {[%emt 00:00:39]} Nf6 {[%clk 00:02:37]} {[%emt 00:00:02]}
22. Bc1 {[%clk 00:00:43]} {[%emt 00:00:16]} Qe4 {[%clk 00:02:37]} {[%emt
00:00:03]} 23. Qxe4 {[%clk 00:00:36]} {[%emt 00:00:10]} Bxe4 {[%clk 00:02:37]}
{[%emt 00:00:02]} 24. Ng5 {[%clk 00:00:24]} {[%emt 00:00:15]} Bd5 {[%clk
00:02:36]} {[%emt 00:00:04]} 25. b4 {[%clk 00:00:23]} {[%emt 00:00:04]} h6
{[%clk 00:02:36]} {[%emt 00:00:02]} 26. Ngf3 {[%clk 00:00:23]} {[%emt
00:00:03]} Rc8 {[%clk 00:02:36]} {[%emt 00:00:01]} 27. Bd2 {[%clk 00:00:16]}
{[%emt 00:00:11]} Ne4 {[%clk 00:02:30]} {[%emt 00:00:08]} 28. Rc1 {[%clk
00:00:16]} {[%emt 00:00:03]} Rxc1+ {[%clk 00:02:30]} {[%emt 00:00:02]} 29. Bxc1
{[%clk 00:00:16]} Nc3 {[%clk 00:02:29]} {[%emt 00:00:04]} 30. Nd3 {[%clk
00:00:15]} {[%emt 00:00:04]} Bxf3 {[%clk 00:02:21]} {[%emt 00:00:11]} 31. gxf3
{[%clk 00:00:15]} {[%emt 00:00:01]} Ne2+ {[%clk 00:02:21]} {[%emt 00:00:02]} 32.
Kg2 {[%clk 00:00:14]} {[%emt 00:00:04]} Nxd4 {[%clk 00:02:21]} {[%emt
00:00:03]} 33. Bb2 {[%clk 00:00:14]} {[%emt 00:00:03]} Nc6 {[%clk 00:02:15]}
{[%emt 00:00:08]} 34. f4 {[%clk 00:00:08]} {[%emt 00:00:09]} f6 {[%clk
00:02:15]} {[%emt 00:00:02]} 35. Kf3 {[%clk 00:00:08]} {[%emt 00:00:02]} Kf7
{[%clk 00:02:15]} 36. b5 {[%clk 00:00:05]} {[%emt 00:00:06]} Na5 {[%clk
00:02:15]} {[%emt 00:00:03]} 37. a4 {[%clk 00:00:05]} {[%emt 00:00:01]} g5
{[%clk 00:02:11]} {[%emt 00:00:07]} 38. fxg5 {[%clk 00:00:04]} {[%emt
00:00:04]} hxg5 {[%clk 00:02:11]} {[%emt 00:00:01]} 39. h3 {[%clk 00:00:04]}
Nc4 {[%clk 00:02:11]} {[%emt 00:00:02]} 40. Bc3 {[%clk 00:00:04]} {[%emt
00:00:01]} f5 {[%clk 00:02:07]} {[%emt 00:00:07]} 41. Bb4 {[%clk 00:00:04]}
{[%emt 00:00:02]} Bxb4 {[%clk 00:02:00]} {[%emt 00:00:09]} 42. Nxb4 {[%clk
00:00:04]} {[%emt 00:00:01]} Ne5+ {[%clk 00:02:00]} 43. Kg3 {[%clk 00:00:04]}
{[%emt 00:00:03]} Ke7 {[%clk 00:02:00]} {[%emt 00:00:02]} 44. h4 {[%clk
00:00:04]} {[%emt 00:00:03]} f4+ {[%clk 00:01:56]} {[%emt 00:00:07]} 45. Kh3
{[%clk 00:00:04]} {[%emt 00:00:03]} gxh4 {[%clk 00:01:56]} {[%emt 00:00:02]} 46.
Kxh4 {[%clk 00:00:04]} {[%emt 00:00:03]} Kd6 {[%clk 00:01:56]} 0-1